Cogmind - Beta 17.1 @@@ ROGUE MODE // 2026.08.26 @ 19:49:22 Player: Artackni Result: Sacrificed to X0-1V1 Performance ------------- Evolutions (0) 0 Regions Visited (1) 200 Robots Destroyed (22) 110 Value Destroyed (443) 443 Prototype IDs (0) 0 Alien Tech Used (0) 0 Bonus (0) 0 TOTAL SCORE: 753 Bonus ------- None Cogmind --------- Core Integrity 0/250 Matter 290/300 Energy 160/160 System Corruption 0% Temperature Cool (0) Movement Treading (160) Location -10/Materials Parts ------- > --- POWER (1) -------- Light Nuclear Core > --- PROPULSION (2) --- Light Treads Light Treads > --- UTILITY (2) ------ Large Storage Unit Seismic Detector > --- WEAPON (2) ------- Small Laser Small Laser > --- INVENTORY (15) --- Light Ion Engine Light Treads Wheel Wheel High-capacity Storage Unit Seismic Detector Light Armor Plating Light Armor Plating Heavy Assault Rifle Heavy Assault Rifle Heavy Assault Rifle Heavy Assault Rifle Grenade Launcher Grenade Launcher Mace Peak State ------------ > --- POWER ------------ Light Nuclear Core > --- PROPULSION ------- Light Treads Light Treads > --- UTILITY ---------- Large Storage Unit Seismic Detector > --- WEAPON ----------- Small Laser Small Laser > --- INVENTORY -------- Light Ion Engine Light Treads Wheel Wheel High-capacity Storage Unit Huge Storage Unit Seismic Detector Light Armor Plating Light Armor Plating Beam Cannon Heavy Assault Rifle Heavy Assault Rifle Heavy Assault Rifle Heavy Assault Rifle Mace [Rating: 11] Favorites ----------- Power Light Nuclear Core Engine Light Ion Engine Power Core Light Nuclear Core Propulsion Light Treads Treads Light Treads Utility Seismic Detector Device Seismic Detector Storage Large Storage Unit Weapon Small Laser Energy Gun Small Laser Build | -11 -10 ------- Run | Yrd Mat Slots Evolved . | . . Power . | . . Propulsion . | . . Utility . | . . Weapon . | . . Parts Attached 12 | 7 5 Power 2 | 1 1 Engine 1 | 1 . Core 1 | . 1 Reactor . | . . Propulsion 2 | 2 . Treads 2 | 2 . Leg . | . . Wheel . | . . Hover . | . . Flight . | . . Utility 4 | 2 2 Device 1 | 1 . Storage 3 | 1 2 Processor . | . . Hackware . | . . Protection . | . . Artifact . | . . Weapon 4 | 2 2 Energy Gun 4 | 2 2 Energy Cannon . | . . Ballistic Gun . | . . Ballistic Cannon . | . . Launcher . | . . Special Weapon . | . . Impact Weapon . | . . Slashing Weapon . | . . Piercing Weapon . | . . Special Melee Weapon . | . . Unidentified Prototypes . | . . Parts Lost 1 | . 1 Power 1 | . 1 Propulsion . | . . Utility . | . . Weapon . | . . Highest Loss Streak 1 | . 1 To Critical Strikes . | . . Average Backups 10 | 2 10 Power 1 | . 1 Propulsion 2 | 1 2 Utility 3 | . 4 Weapon 3 | . 3 Tool/Special . | . . Unused Backups 18 | . 18 Power 1 | . 1 Propulsion 4 | . 4 Utility 5 | . 5 Weapon 8 | . 8 Tool/Special . | . . Average Slot Usage (%) 100 | . 100 Engine 4 | . 4 Core 9 | . 9 Treads 28 | . 28 Device 14 | . 14 Storage 14 | . 14 Energy Gun 28 | . 28 Peak Build Rating 11 | 7 11 Average Rating 8 | 5 9 On Entrance 3 | . 7 Avg Prop Armor Cover (%) . | . . Naked Turns . | . . Heaviest Build 48 | 11 48 Greatest Support 40 | 40 40 Greatest Overweight (x) 1 | . 1 Average Overweight (x) . | . . Largest Inventory Capacity 20 | 8 20 Average Capacity 14 | 7 14 Most Carried 15 | 5 15 Average Carried 10 | 2 10 Final Capacity 15 | 8 15 Final Carried 15 | 5 15 Class Distribution -------------------- 100% | Mutant Dominant Class ---------------- Mutant | -10/Materials Resources | -11 -10 ----------- Run | Yrd Mat Matter Collected 316 | 270 46 Remotely . | . . Salvage Created 737 | 106 631 Parts 50 | 9 41 Haulers Intercepted 2 | . 2 Recyclers Shooed 2 | . 2 Parts Field Recycled . | . . Retrieved Matter . | . . Parts Self-Destructed . | . . Prevented . | . . Parts Restored . | . . Kills | -11 -10 ------- Run | Yrd Mat Combat Hostiles Destroyed 13 | . 13 Guns 13 | . 13 Classes Destroyed 6 | 2 4 Builder 2 | . 2 Tunneler 3 | 3 . Hauler 2 | . 2 Recycler 2 | 1 1 Swarmer 3 | . 3 Grunt 10 | . 10 Best Kill Streak 4 | 4 4 Combat Bots Only 3 | . 3 Max Kills in Single Turn 1 | 1 1 Gunslinging . | . . Exploded . | . . Melee . | . . Uniques/NPCs Destroyed . | . . Combat | -11 -10 -------- Run | Yrd Mat Hostile Shots Fired 74 | . 74 Missed 21 | . 21 Hits 53 | . 53 Projectile 53 | . 53 Critical Strikes 1 | . 1 Damage Taken 580 | . 580 Core 161 | . 161 Absorbed by Shields . | . . Core Remaining (%) 100 | 100 . Volleys Fired 82 | 7 75 Largest 2 | 2 2 Hottest 80 | 80 80 Shots Fired 164 | 14 150 Gun 164 | 14 150 Cannon . | . . Launcher . | . . Special . | . . Kinetic . | . . Thermal 164 | 14 150 Explosive . | . . Electromagnetic . | . . Robot Hit Streak 11 | 3 11 Robot Miss Streak 5 | 1 5 Penetration Max . | . . Secondary Targets 2 | . 2 Max Gunslinging Chain 1 | . 1 Shots Hit Robots 102 | 8 94 Core Hits 38 | 5 33 Critical Kills . | . . Critical Parts Destroyed . | . . Critical Strikes . | . . Melee Attacks . | . . Impact . | . . Slashing . | . . Piercing . | . . Sneak Attacks . | . . Combat Hostiles . | . . Follow-up Attacks . | . . Damage Inflicted 1157 | 92 1065 Guns 1145 | 89 1056 Cannons . | . . Explosions . | . . Melee . | . . Ramming 12 | 3 9 Kinetic . | . . Thermal 1145 | 89 1056 Explosive . | . . Electromagnetic . | . . Impact . | . . Slashing . | . . Piercing . | . . Highest Corruption . | . . Average Corruption . | . . Corruption Purged . | . . Corruption Blocked . | . . Overload Shots . | . . Overflow Damage . | . . Projectiles . | . . Explosions . | . . Melee . | . . Knockbacks . | . . Impact . | . . Kinetic . | . . Secondary . | . . Self-Inflicted Damage . | . . Shots . | . . Rammed 4 | 2 2 Targets Rammed 5 | 2 3 Kicked . | . . Crushed 1 | . 1 Highest Temperature 228 | 54 228 Average Temperature 61 | 20 64 Received Heat Transfer 285 | . 285 Siege Activations . | . . Martial Activations . | . . Shielding Activations . | . . Robots Disrupted . | . . Combat Hostiles . | . . Robots Corrupted . | . . Combat Hostiles . | . . Parts Fried . | . . Impact Corruptions . | . . Robots Melted . | . . Combat Hostiles . | . . Parts Melted 4 | . 4 Heat Transferred 2575 | 200 2375 Parts Sabotaged . | . . Parts Stolen . | . . Parts Stripped . | . . Power Chain Reactions . | . . Alert | -11 -10 ------- Run | Yrd Mat Maximum Alert Level . | . . Low Security (%) 100 | 100 100 Level 1 . | . . Level 2 . | . . Level 3 . | . . Level 4 . | . . Level 5 . | . . High Security . | . . Max Security . | . . Peak Influence 124 | 15 124 Initial . | . . Average 29 | 3 31 Influence Increases 389 | 20 369 Destroy 0b10 Robot/C 260 | . 260 Destroy 0b10 Robot/NC 45 | 20 25 Destroy Leader 64 | . 64 Successful Hack 5 | . 5 Lose Combat Pursuer 15 | . 15 Influence Decreases 389 | 20 369 Time Decay 389 | 20 369 Squads Dispatched 3 | . 3 Investigation . | . . Extermination . | . . Reinforcement 3 | . 3 Assault . | . . Garrison . | . . Intercept . | . . Searches Triggered . | . . Construction Impeded . | . . Haulers Reinforced . | . . Active Scanning Responses . | . . Cargo Convoy Interrupts . | . . Stealth | -11 -10 --------- Run | Yrd Mat Distress Signals 1 | . 1 Communications Jammed . | . . Distress Signals . | . . Times Spotted 36 | . 36 Peak Tracking Total 4 | . 4 Tactical Retreats 1 | . 1 Traps | -11 -10 ------- Run | Yrd Mat Traps Triggered . | . . Indirectly . | . . Trap Hack Attempts . | . . Triggered . | . . Disarmed . | . . Reprogrammed . | . . Reused . | . . Traps Extracted . | . . Installed . | . . Triggered . | . . Machines | -11 -10 ---------- Run | Yrd Mat Machines Disabled . | . . Max in Single Turn . | . . Machines Repaired . | . . Machines Dismantled . | . . Machines Sabotaged . | . . Overloaded Fab Kills . | . . Hacking | -11 -10 --------- Run | Yrd Mat Machines Accessed 2 | . 2 Terminals 2 | . 2 Fabricators . | . . Repair Stations . | . . Recycling Units . | . . Scanalyzers . | . . Garrison Access . | . . Total Hacks 3 | . 3 Successful 3 | . 3 Failed . | . . Catastrophic . | . . Database Lockouts . | . . Manual 2 | . 2 Terminals 3 | . 3 Fabricators . | . . Repair Stations . | . . Recycling Units . | . . Scanalyzers . | . . Garrison Access . | . . Terminal Hacks 2 | . 2 Robot Analysis 2 | . 2 Fabricator Hacks . | . . Repair Station Hacks . | . . Recycling Unit Hacks . | . . Scanalyzer . | . . Garrison Access Hacks . | . . Unauthorized Hacks 1 | . 1 Terminals 1 | . 1 Operators 1 | . 1 Fabricators . | . . Repair Stations . | . . Recycling Units . | . . Scanalyzers . | . . Garrison Access . | . . Data Cores Recovered . | . . Used . | . . Hacking Detections . | . . Full Trace Events . | . . Feedback Events . | . . Feedback Blocked . | . . Robot Schematics Acquired . | . . Robots Built . | . . Authchips . | . . Time . | . . Total Robot Build Rating . | . . Part Schematics Acquired . | . . Parts Built . | . . Authchips . | . . Time . | . . Total Part Build Rating . | . . Part Studies Acquired . | . . Parts Repaired . | . . Time . | . . Parts Recycled . | . . Recycled Matter . | . . Retrieved Matter . | . . Retrieved Components . | . . Parts Scanalyzed . | . . Part Schematics Acquired . | . . Parts Damaged . | . . Bothacking | -11 -10 ------------ Run | Yrd Mat Used RIF Installer . | . . Robots Hacked . | . . Non-combat . | . . Combat . | . . Robot Hacks Applied . | . . Relay Couplers Released . | . . Fabnet Peak Effective % . | . . Robots Rewired . | . . Allies Hacked . | . . Hacks Repelled . | . . Allies | -11 -10 -------- Run | Yrd Mat Total Allies . | . . Largest Group . | . . Highest-Rated Group . | . . Highest-Rated Ally . | . . Total Orders . | . . Ally Attacks . | . . Total Damage . | . . Kills . | . . Allies Corrupted . | . . Allies Melted . | . . Intel | -11 -10 ------- Run | Yrd Mat Active Infowar (turns) 1693 | 34 1659 Seismic 1693 | 34 1659 Robot Analysis Total 2 | . 2 Derelict Logs Recovered . | . . Drone Launches . | . . Drone Recoveries . | . . Exploration | -11 -10 ------------- Run | Yrd Mat Turns Passed 1767 | 108 1659 Spaces Moved 838 | 48 790 Core 7 | 7 . Treads 831 | 41 790 Legs . | . . Wheels . | . . Hover . | . . Flight . | . . Fastest Speed 50 | 50 160 Average Speed 170 | 143 172 Slowest Speed 240 | 160 240 Overloaded Moves . | . . Propulsion Burnouts . | . . Robots Hopped . | . . Potential Cave-ins . | . . Cave-ins Triggered . | . . Exploration Rate (%) 48 | 4 92 Regions Visited 1 Branch Regions . Pre-discovered Areas . | . . Known Exits Taken . | . . Unknown Exits Taken 1 | 1 . Scrap Searched . | . . Spaces Dug . | . . Terrain Destroyed . | . . Melee . | . . Projectile . | . . AOE . | . . Terrain Rammed . | . . Walls Destroyed . | . . Machines Disabled . | . . Actions | -11 -10 --------- Run | Yrd Mat Total 1006 | 68 938 Wait 38 | . 38 Move 838 | 48 790 Hop . | . . Pick Up 22 | 5 17 Fast Attach 7 | 7 . Attach 1 | . 1 Detach . | . . Swap 5 | . 5 Drop 9 | . 9 Fire 82 | 7 75 Melee . | . . Ram . | . . Kick . | . . Crush 4 | 1 3 Escape Stasis . | . . Rewire . | . . Trap . | . . Miscellaneous . | . . Route ------- -11/Scrapyard -10/Materials (discovered 6 exits: [*Mat x3] / [*Min x2] / [*Sub]) History --------- Turn | Location | Event 22 | -11/Scrapyard | Discovered new exit (range 15) 109 | -11/Scrapyard | Entered Materials 175 | -10/Materials | Discovered new exit (range 7) 300 | -10/Materials | Build established: Mutant 354 | -10/Materials | Discovered new exit (range 15) 811 | -10/Materials | Core integrity fell below 50% 854 | -10/Materials | Discovered new exit (range 16) 1022 | -10/Materials | Discovered new exit (range 10) 1671 | -10/Materials | Discovered new exit (range 12) 1759 | -10/Materials | Discovered new exit (range 5) 1768 | -10/Materials | Made a sacrifice at D.C.S.S. Altar Unit 1768 | -10/Materials | Sacrificed to X0-1V1 Last Messages --------------- 01315_ Dropped Imp. Heat Sink. 01315_ Dropped Sml. Storage Unit. 01316_ Dropped Sml. Laser. 01319_ Acquired Huge Storage Unit. 01320_ Acquired 10 matter. 01326_ K-01 Serf collects debris. 01435_ K-01 Serf cleans the Neutrino Reactor. 01647_ Acquired Hvy. Assault Rifle. 01655_ Dropped Lgt. Assault Rifle. 01655_ Acquired Hvy. Assault Rifle. 01660_ Dropped Mining Claw. 01661_ Acquired Mace. 01671_ EXIT=FOUND 01724_ R-06 Scavenger collects Lgt. Assault Rifle. 01735_ Dropped Beam Cannon. 01739_ Acquired Grenade Launcher. 01740_ Dropped Huge Storage Unit. 01742_ Acquired Grenade Launcher. 01759_ EXIT=FOUND 01768_ Connecting with D.C.S.S. Altar Unit... Map ----- +----------------------------------------------------+ | ??# % #???# ## #??????????????????# | | ??######+########## #####+##??????????????????# | | ####### % + #### #????????????####### | | + # + ########?????# ## | | # """ + #### # !!//#?????# "" | | # """ ## #??## ## !! /#?????# "" | | # """ ## #???# ## / #?????# T" | | # ## #???# ## #?????# "" | | + ## #???# ####### "" | | # """ ############## + ## | | ### """ #?????# |] #?# ## # | | #?# """ #?????# = #?# """ ## # | | #?# #?????# != ### """ ####### | | #?# #?????# # """ #?????# | | ######### """ #?????# ] + #?????# | | """ ## """ #?????#"" # #?????# | | """"" # """ #?????#"T # """ #?????# | | """"" # #?????#"" # """ #?????# | | """"" + #?????# # """ #?????# | | """ # < ##+########?###### +?????# | | # # | #??# + #?????# | | ! ##### #??# ########+## < #?????# | | #???# """"""" #?## #?????????# #?????## | | #???# """"""" #?#< #?????????#####??????? | | ########???# """"""" #?## #????????????????????? | | ???????????# """"""" #??#@ #????????????????????? | | ???????????# """"""" #?#X #????????????????????? | | ???????????# ?? #?######????????????????????? | | ????????????#??????##????????????????????????????? | | | | | | | | | | | | | | | | | | | | | | | | | | | | | | | | | | | | | | | | | | | +----------------------------------------------------+ Best States ------------- Heat Dissipation 25 Energy Generation 14 Energy Capacity 160 Matter Stores 300 Matter Capacity 300 Sight Range 16 Terrain Scan Density 10 Evasion (%) 40 Recoil Reduction 2 Item Schematics ----------------- None Robot Schematics ------------------ None Fabricated ------------ Nothing Repaired ---------- Nothing Studied --------- None Alien Tech Used ----------------- None Achievements -------------- None Challenges ------------ None Game ------ Seed BorgIntegrityRocket Manual? 0 Play Time 00:09:27 Cumulative 306.5 hours Start 2026.08.26 @ 19:34:12 End 2026.08.26 @ 19:49:22 Sessions 1 Manual Loads 0 Difficulty Rogue Special Mode None Game No. 149 Rogue 149 Adventurer 0 Explorer 0 Win Type - Total 18 Types 14/1/1/1/0/0/0/0/0/1 Lore% 79 Gallery% 75 Achievement% 73 Wizard Run 0 Options --------- Layout 0 ASCII 0 Keyboard 1 Movement Arrows Keybinds 0 Fullscreen 2 Font 18/SmallcapsGlow Map View 76x50 Zoom Use 0% Tactical HUD 1 Map Filters NONE Filters NONE Steam 1 RUN: 156d0ad9-aeed-4333-91ef-faf82d84b364